lending/lending_fUSD_20250425
["ID","MTS","AMOUNT","RATE_DAILY","PERIOD"]
[358913196,1745544980687,-500.0,0.00049315,30]
[358913197,1745544980717,-939.8,0.00049315,30]
[358913198,1745544980745,-2036.8,0.00049315,30]
[358913199,1745544980773,-500.0,0.00049315,30]
[358913200,1745544980805,-500.0,0.00049315,30]
[358913201,1745544980833,-517.24,0.00049315,30]
[358913202,1745544980863,-500.0,0.00049315,30]
[358913203,1745544980894,-1789.85,0.00049315,30]
[358913204,1745544980925,-1482.56,0.00049315,30]
[358913205,1745544980955,-500.0,0.00049315,30]
[358913206,1745544980987,-500.0,0.00049315,30]
[358913207,1745544981018,-566.72,0.00049315,30]
[358913208,1745544981048,-500.0,0.00049315,30]
[358913209,1745544981077,-500.0,0.00049315,30]
[358913210,1745544981106,-500.0,0.00049315,30]
[358913211,1745544981134,-500.0,0.00049315,30]
[358913212,1745544981161,-500.0,0.00049315,30]
[358913213,1745544981189,-500.0,0.00049315,30]
[358913214,1745544981217,-500.0,0.00049315,30]
[358913215,1745544981245,-1510.65,0.00049315,30]
[358913216,1745544981274,-7820.72,0.00049315,30]
[358913217,1745544981303,-1008.08,0.00049315,30]
[358913218,1745544981331,-2109.99,0.00049315,30]
[358913219,1745544981360,-500.0,0.00049315,30]
[358913220,1745544981389,-500.0,0.00049315,30]
[358913221,1745544981417,-1011.43,0.00049315,30]
[358913222,1745544981445,-500.0,0.00049315,30]
[358913223,1745544981473,-538.09977851,0.00049315,30]
[358913224,1745544981501,-730.49,0.00049315,30]
[358913225,1745544981529,-500.0,0.00049315,30]
[358913226,1745544981559,-1151.98,0.00049315,30]
[358913227,1745544981587,-500.0,0.00049315,30]
[358913228,1745544981616,-860.98,0.00049315,30]
[358913229,1745544981644,-500.0,0.00049315,30]
[358913230,1745544981671,-500.0,0.00049315,30]
[358913231,1745544981698,-492.71075986,0.00049315,30]
[358913232,1745544981725,-528.27,0.00049315,30]
[358913233,1745544981751,-500.0,0.00049315,30]
[358913234,1745544981778,-518.27438816,0.00049315,30]
[358913235,1745544981807,-500.0,0.00049315,30]
[358913236,1745544981835,-500.0,0.00049315,30]
[358913237,1745544981864,-4932.73,0.00049315,30]
[358913238,1745544981892,-500.0,0.00049315,30]
[358913239,1745544981919,-500.0,0.00049315,30]
[358913240,1745544981945,-769.43,0.00049315,30]
[358913241,1745544981972,-500.0,0.00049315,30]
[358913242,1745544981999,-500.0,0.00049315,30]
[358913243,1745544982026,-679.02,0.00049315,30]
[358913244,1745544982052,-694.5,0.00049315,30]
[358913245,1745544982078,-679.02,0.00049315,30]
[358913246,1745544982105,-679.02,0.00049315,30]
[358913247,1745544982131,-679.02,0.00049315,30]
[358913248,1745544982157,-500.0,0.00049315,30]
[358913249,1745544982184,-679.02,0.00049315,30]
[358913250,1745544982212,-500.0,0.00049315,30]
[358913251,1745544982239,-679.02,0.00049315,30]
[358913252,1745544982265,-679.02,0.00049315,30]
[358913253,1745544982294,-500.0,0.00049315,30]
[358913254,1745544982321,-534.59471592,0.00049315,30]
[358913255,1745544982349,-679.02,0.00049315,30]
[358913256,1745544982376,-500.0,0.00049315,30]
[358913257,1745544982402,-679.02,0.00049315,30]
[358913258,1745544982428,-679.02,0.00049315,30]
[358913259,1745544982454,-679.02,0.00049315,30]
[358913260,1745544982481,-679.02,0.00049315,30]
[358913261,1745544982506,-679.02,0.00049315,30]
[358913262,1745544982532,-679.02,0.00049315,30]
[358913263,1745544982558,-679.02,0.00049315,30]
[358913264,1745544982585,-679.02,0.00049315,30]
[358913265,1745544982612,-516.71601346,0.00049315,30]
[358913266,1745544982638,-679.02,0.00049315,30]
[358913267,1745544982665,-500.0,0.00049315,30]
[358913268,1745544982692,-858.57,0.00049315,30]
[358913269,1745544982717,-679.02,0.00049315,30]
[358913270,1745544982744,-500.0,0.00049315,30]
[358913271,1745544982770,-679.02,0.00049315,30]
[358913272,1745544982800,-500.0,0.00049315,30]
[358913273,1745544982828,-735.15,0.00049315,30]
[358913274,1745544982856,-916.62,0.00049315,30]
[358913275,1745544982886,-500.0,0.00049315,30]
[358913276,1745544982913,-763.88,0.00049315,30]
[358913277,1745544982939,-501.66,0.00049315,30]
[358913278,1745544982966,-727.33,0.00049315,30]
[358913279,1745544982992,-3396.35,0.00049315,30]
[358913280,1745544983019,-875.49,0.00049315,120]
[358913281,1745544983044,-500.0,0.00049315,30]
[358913282,1745544983070,-500.0,0.00049315,30]
[358913283,1745544983096,-262.30899233,0.00049315,30]
[358913284,1745544983123,-500.0,0.00049315,30]
[358913285,1745544983149,-513.65343823,0.00049315,30]
[358913286,1745544983175,-500.0,0.00049315,30]
[358913287,1745544983201,-1005.63995471,0.00049315,30]
[358913288,1745544983228,-500.0,0.00049315,30]
[358913289,1745544983256,-500.0,0.00049315,30]
[358913290,1745544983512,-500.0,0.00049315,30]
[358913291,1745544983540,-568.37356261,0.00049315,30]
[358913292,1745544983569,-500.0,0.00049315,30]
[358913293,1745544983598,-500.0,0.00049315,30]
[358913294,1745544983625,-1575.26,0.00049315,30]
[358913295,1745544983652,-500.0,0.00049315,30]
[358913296,1745544983680,-3022.03,0.00049315,30]
[358913297,1745544983708,-500.0,0.00049315,30]
[358913298,1745544983735,-500.0,0.00049315,30]
[358913299,1745544983762,-500.0,0.00049315,30]
[358913300,1745544983789,-500.0,0.00049315,30]
[358913301,1745544983820,-500.0,0.00049315,30]
[358913302,1745544983848,-500.0,0.00049315,30]
[358913303,1745544983876,-500.0,0.00049315,30]
[358913304,1745544983902,-500.0,0.00049315,30]
[358913305,1745544983929,-500.0,0.00049315,30]
[358913306,1745544983957,-500.0,0.00049315,30]
[358913307,1745544983984,-500.0,0.00049315,30]
[358913308,1745544984012,-500.0,0.00049315,30]
[358913309,1745544984039,-500.0,0.00049315,30]
[358913310,1745544984066,-500.0,0.00049315,30]
[358913311,1745544984092,-500.0,0.00049315,30]
[358913312,1745544984119,-500.0,0.00049315,30]
[358913313,1745544984146,-500.0,0.00049315,30]
[358913314,1745544984173,-565.54975961,0.00049315,30]
[358913315,1745544984199,-508.00059332,0.00049315,30]
[358913316,1745544984225,-500.0,0.00049315,30]
[358913317,1745544984252,-719.69,0.00049315,30]
[358913318,1745544984278,-1502.96,0.00049315,30]
[358913319,1745544984305,-742.58,0.00049315,30]
[358913320,1745544984331,-500.0,0.00049315,30]
[358913321,1745544984357,-500.0,0.00049315,30]
[358913322,1745544984382,-695.81,0.00049315,30]
[358913323,1745544984409,-500.0,0.00049315,30]
[358913324,1745544984435,-537.59983006,0.00049315,30]
[358913325,1745544984462,-500.0,0.00049315,30]
[358913326,1745544984489,-500.0,0.00049315,30]
[358913327,1745544984516,-500.0,0.00049315,30]
[358913328,1745544984544,-500.0,0.00049315,30]
[358913329,1745544984572,-500.0,0.00049315,30]
[358913330,1745544984601,-500.0,0.00049315,30]
[358913331,1745544984629,-663.3,0.00049315,30]
[358913332,1745544984657,-678.67,0.00049315,30]
[358913333,1745544984685,-618.78,0.00049315,30]
[358913334,1745544984711,-538.553582,0.00049315,30]
[358913335,1745544984740,-764.82,0.00049315,30]
[358913336,1745544984767,-529.438925,0.00049315,30]
[358913337,1745544984795,-500.0,0.00049315,30]
[358913338,1745544984823,-500.0,0.00049315,30]
[358913339,1745544984849,-1442.41,0.00049315,30]
[358913340,1745544984877,-2108.6,0.00049315,30]
[358913341,1745544984906,-500.0,0.00049315,30]
[358913342,1745544984936,-500.0,0.00049315,30]
[358913343,1745544984963,-500.0,0.00049315,30]
[358913344,1745544984991,-500.0,0.00049315,30]
[358913345,1745544985019,-873.69,0.00049315,30]
[358913346,1745544985046,-534.89186622,0.00049315,30]
[358913347,1745544985073,-512.05729179,0.00049315,30]
[358913348,1745544985102,-563.02603895,0.00049315,30]
[358913349,1745544985131,-599.18,0.00049315,30]
[358913350,1745544985160,-554.91551283,0.00049315,30]
[358913351,1745544985188,-3086.13,0.00049315,30]
[358913352,1745544985215,-500.0,0.00049315,30]
[358913353,1745544985242,-384.90139251,0.00049315,30]
[358913354,1745544985271,-1593.79,0.00049315,30]
[358913355,1745544985298,-514.02876276,0.00049315,30]
[358913356,1745544985328,-2263.32,0.00049315,30]
[358913357,1745544985357,-500.0,0.00049315,30]
[358913358,1745544985386,-2700.89,0.00049315,30]
[358913359,1745544985415,-500.0,0.00049315,30]
[358913360,1745544985445,-500.0,0.00049315,30]
[358913361,1745544985474,-508.776476,0.00049315,30]
[358913362,1745544985503,-795.15,0.00049315,30]
[358913363,1745544985532,-500.0,0.00049315,30]
[358913364,1745544985559,-522.13,0.00049315,30]
[358913365,1745544985586,-500.0,0.00049315,30]
[358913366,1745544985614,-500.0,0.00049315,30]
[358913367,1745544985641,-1414.77,0.00049315,30]
[358913368,1745544985668,-500.0,0.00049315,30]
[358913369,1745544985696,-1268.35,0.00049315,30]
[358913370,1745544985725,-1107.8,0.00049315,30]
[358913371,1745544985753,-500.0,0.00049315,30]
[358913372,1745544985779,-2000.0,0.00049315,120]
[358913373,1745544985806,-500.0,0.00049315,30]
[358913374,1745544985833,-530.62037653,0.00049315,30]
[358913375,1745544985860,-879.02,0.00049315,30]
[358913376,1745544985890,-818.01,0.00049315,30]
[358913377,1745544985916,-500.0,0.00049315,30]
[358913378,1745544985943,-1065.05,0.00049315,30]
[358913379,1745544985970,-1598.1,0.00049315,30]
[358913380,1745544985997,-1000.0,0.00049315,30]
[358913381,1745544986024,-4254.61,0.00049315,30]
[358913382,1745544986051,-500.0,0.00049315,30]
[358913383,1745544986078,-500.0,0.00049315,30]
[358913384,1745544986104,-534.52215006,0.00049315,30]
[358913385,1745544986130,-500.0,0.00049315,30]
[358913386,1745544986157,-500.0,0.00049315,30]
[358913387,1745544986184,-500.0,0.00049315,30]
[358913388,1745544986210,-500.0,0.00049315,30]
[358913389,1745544986236,-2090.38,0.00049315,30]
[358913390,1745544986262,-858.84,0.00049315,30]
[358913391,1745544986289,-752.9,0.00049315,30]
[358913392,1745544986317,-765.14,0.00049315,30]
[358913393,1745544986344,-585.7241541,0.00049315,30]
[358913394,1745544986371,-500.0,0.00049315,30]
[358913395,1745544986600,-500.0,0.00049315,30]
[358913396,1745544986628,-1773.32,0.00049315,30]
[358913397,1745544986654,-431.58615479,0.00049315,30]
[358913398,1745544986681,-500.0,0.00049315,30]
[358913399,1745544986708,-1111.7,0.00049315,30]
[358913400,1745544986736,-1976.47,0.00049315,30]
[358913401,1745544986764,-500.0,0.00049315,30]
[358913402,1745544986794,-2108.59,0.00049315,30]
[358913403,1745544986824,-500.0,0.00049315,30]
[358913404,1745544986852,-1416.48,0.00049315,30]
[358913405,1745544986880,-500.0,0.00049315,30]
[358913406,1745544986909,-509.56,0.00049315,30]
[358913407,1745544986937,-500.0,0.00049315,30]
[358913408,1745544986967,-700.32,0.00049315,30]
[358913409,1745544986995,-924.91,0.00049315,30]
[358913410,1745544987024,-690.7,0.00049315,30]
[358913411,1745544987052,-1152.0,0.00049315,30]
[358913412,1745544987083,-500.0,0.00049315,30]
[358913413,1745544987111,-500.0,0.00049315,30]
[358913414,1745544987139,-1140.87,0.00049315,30]
[358913415,1745544987168,-500.0,0.00049315,30]
[358913416,1745544987197,-530.70339973,0.00049315,30]
[358913417,1745544987225,-500.0,0.00049315,30]
[358913418,1745544987253,-7822.1,0.00049315,30]
[358913419,1745544987280,-500.0,0.00049315,30]
[358913420,1745544987309,-871.81,0.00049315,30]
[358913421,1745544987336,-657.75,0.00049315,30]
[358913422,1745544987379,-500.0,0.00049315,30]
[358913423,1745544987412,-500.0,0.00049315,30]
[358913424,1745544987442,-1613.27,0.00049315,30]
[358913425,1745544987473,-528.97581744,0.00049315,30]
[358913426,1745544987504,-383.32851248,0.00049315,30]
[358913427,1745544987534,-500.0,0.00049315,30]
[358913428,1745544987566,-415.51,0.00049315,30]
[358913429,1745544987596,-500.0,0.00049315,30]
[358913430,1745544987627,-8595.77,0.00049315,30]
[358913431,1745544987658,-500.0,0.00049315,30]
[358913432,1745544987689,-806.86,0.00049315,30]
[358913433,1745544987719,-554.11047569,0.00049315,30]
[358913434,1745544987749,-500.0,0.00049315,30]
[358913435,1745544987779,-828.35,0.00049315,30]
[358913436,1745544987813,-1103.09,0.00049315,30]
[358913437,1745544987843,-500.0,0.00049315,30]
[358913438,1745544987871,-500.0,0.00049315,30]
[358913439,1745544987902,-942.33,0.00049315,30]
[358913440,1745544987938,-500.0,0.00049315,30]
[358913441,1745544987967,-1310.31,0.00049315,30]
[358913442,1745544987998,-1476.33,0.00049315,30]
[358913443,1745544988027,-1855.1,0.00049315,30]
[358913444,1745544988056,-500.0,0.00049315,30]
[358913445,1745544988085,-500.0,0.00049315,30]
[358913446,1745544988115,-2687.81,0.00049315,30]
[358913447,1745544988145,-514.71457788,0.00049315,30]
[358913448,1745544988174,-500.0,0.00049315,30]
[358913449,1745544988203,-500.0,0.00049315,30]
[358913450,1745544988232,-529.23898337,0.00049315,30]
[358913451,1745544988261,-500.0,0.00049315,30]
[358913452,1745544988288,-1456.2,0.00049315,30]
[358913453,1745544988318,-1289.56,0.00049315,30]
[358913454,1745544988347,-500.0,0.00049315,30]
[358913455,1745544988375,-500.0,0.00049315,30]
[358913456,1745544988404,-1901.29,0.00049315,30]
[358913457,1745544988431,-500.0,0.00049315,30]
[358913458,1745544988460,-500.0,0.00049315,30]
[358913459,1745544988498,-500.0,0.00049315,30]
[358913460,1745544988528,-827.14,0.00049315,30]
[358913461,1745544988557,-500.0,0.00049315,30]
[358913462,1745544988587,-238.12395404,0.00049315,30]
[358913463,1745544988616,-500.0,0.00049315,30]
[358913464,1745544988645,-500.0,0.00049315,30]
[358913465,1745544988674,-405.29911127,0.00049315,30]
[358913466,1745544988703,-792.6,0.00049315,30]
[358913467,1745544988732,-500.0,0.00049315,30]
[358913468,1745544988762,-1103.01,0.00049315,30]
[358913469,1745544988791,-546.36,0.00049315,30]
[358913470,1745544988823,-500.0,0.00049315,30]
[358913471,1745544988852,-564.36767022,0.00049315,30]
[358913472,1745544988881,-1780.52,0.00049315,30]
[358913473,1745544988907,-500.0,0.00049315,30]
[358913474,1745544988935,-500.0,0.00049315,30]
[358913475,1745544988962,-1012.63,0.00049315,30]
[358913476,1745544988988,-2937.58,0.00049315,30]
[358913477,1745544989015,-500.0,0.00049315,30]
[358913478,1745544989046,-500.0,0.00049315,30]
[358913479,1745544989073,-541.09,0.00049315,30]
[358913480,1745544989099,-1812.49,0.00049315,30]
[358913481,1745544989127,-500.0,0.00049315,30]
[358913482,1745544989153,-500.0,0.00049315,30]
[358913483,1745544989180,-2325.32,0.00049315,30]
[358913484,1745544989206,-500.0,0.00049315,30]
[358913485,1745544989233,-2645.58,0.00049315,30]
[358913486,1745544989259,-500.0,0.00049315,30]
[358913487,1745544989285,-500.0,0.00049315,30]
[358913488,1745544989311,-500.0,0.00049315,30]
[358913489,1745544989337,-2124.79,0.00049315,30]
[358913490,1745544989364,-500.0,0.00049315,30]
[358913491,1745544989390,-500.0,0.00049315,30]
[358913492,1745544989418,-1616.8,0.00049315,30]
[358913493,1745544989447,-1776.77,0.00049315,30]
[358913494,1745544989472,-500.0,0.00049315,30]
[358913495,1745544989499,-661.52,0.00049315,30]
[358913496,1745544989525,-500.0,0.00049315,30]
[358913497,1745544989551,-620.23,0.00049315,30]
[358913498,1745544989591,-500.0,0.00049315,30]
[358913499,1745544989982,-1156.82,0.00049315,30]
[358913500,1745544990010,-2205.24,0.00049315,30]
[358913501,1745544990035,-513.40779494,0.00049315,30]
[358913502,1745544990063,-802.61,0.00049315,30]
[358913503,1745544990088,-781.78,0.00049315,30]
[358913504,1745544990114,-500.0,0.00049315,30]
[358913505,1745544990140,-3457.54,0.00049315,30]
[358913506,1745544990166,-500.0,0.00049315,30]
[358913507,1745544990192,-515.47,0.00049315,30]
[358913508,1745544990219,-553.68,0.00049315,30]
[358913509,1745544990248,-943.43,0.00049315,30]
[358913510,1745544990275,-583.08237279,0.00049315,30]
[358913511,1745544990303,-500.0,0.00049315,30]
[358913512,1745544990330,-990.31,0.00049315,30]
[358913513,1745544990357,-610.47,0.00049315,30]
[358913514,1745544990384,-2070.09,0.00049315,30]
[358913515,1745544990410,-500.0,0.00049315,30]
[358913516,1745544990443,-500.0,0.00049315,30]
[358913517,1745544990471,-500.0,0.00049315,30]
[358913518,1745544990499,-1324.47,0.00049315,30]
[358913519,1745544990526,-500.0,0.00049315,30]
[358913520,1745544990554,-500.0,0.00049315,30]
[358913521,1745544990581,-500.0,0.00049315,30]
[358913522,1745544990610,-3419.03,0.00049315,30]
[358913523,1745544990637,-3680.59,0.00049315,30]
[358913524,1745544990664,-159.74190709,0.00049315,30]
[358913525,1745544990692,-500.0,0.00049315,30]
[358913526,1745544990720,-500.0,0.00049315,30]
[358913527,1745544990748,-982.56,0.00049315,30]
[358913528,1745544990775,-560.53397147,0.00049315,30]
[358913529,1745544990809,-350.0,0.00049315,30]
[358913530,1745544990839,-6091.61,0.00049315,30]
[358913531,1745544990870,-500.0,0.00049315,30]
[358913532,1745544990899,-500.0,0.00049315,30]
[358913533,1745544990926,-500.0,0.00049315,30]
[358913534,1745544990953,-500.0,0.00049315,30]
[358913535,1745544990986,-500.0,0.00049315,30]
[358913536,1745544991014,-1042.75,0.00049315,30]
[358913537,1745544991042,-755.73,0.00049315,30]
[358913538,1745544991072,-2124.75,0.00049315,30]
[358913539,1745544991102,-1207.25,0.00049315,30]
[358913540,1745544991131,-1232.59,0.00049315,30]
[358913541,1745544991159,-500.0,0.00049315,30]
[358913542,1745544991187,-500.0,0.00049315,30]
[358913543,1745544991216,-500.0,0.00049315,30]
[358913544,1745544991244,-767.48,0.00049315,30]
[358913545,1745544991272,-500.0,0.00049315,30]
[358913546,1745544991302,-787.17,0.00049315,30]
[358913547,1745544991330,-555.45849129,0.00049315,30]
[358913548,1745544991358,-1581.75,0.00049315,30]
[358913549,1745544991383,-531.36469204,0.00049315,30]
[358913550,1745544991410,-500.0,0.00049315,30]
[358913551,1745544991438,-500.0,0.00049315,30]
[358913552,1745544991465,-500.0,0.00049315,30]
[358913553,1745544991494,-1343.63,0.00049315,30]
[358913554,1745544991538,-2907.59,0.00049315,30]
[358913555,1745544991567,-895.82,0.00049315,30]
[358913556,1745544991594,-500.0,0.00049315,30]
[358913557,1745544991623,-2590.97,0.00049315,30]
[358913558,1745544991651,-500.0,0.00049315,30]
[358913559,1745544991678,-500.0,0.00049315,30]
[358913560,1745544991707,-500.0,0.00049315,30]
[358913561,1745544991736,-1122.52,0.00049315,30]
[358913562,1745544991765,-500.0,0.00049315,30]
[358913563,1745544991793,-500.0,0.00049315,30]
[358913564,1745544991826,-543.24,0.00049315,30]
[358913565,1745544991854,-4014.71,0.00049315,30]
[358913566,1745544991881,-500.0,0.00049315,30]
[358913567,1745544991908,-500.0,0.00049315,30]
[358913568,1745544991936,-500.0,0.00049315,30]
[358913569,1745544991965,-500.0,0.00049315,30]
[358913570,1745544991991,-535.6247154,0.00049315,30]
[358913571,1745544992019,-500.84,0.00049315,30]
[358913572,1745544992048,-500.0,0.00049315,30]
[358913573,1745544992076,-925.93,0.00049315,30]
[358913574,1745544992102,-500.0,0.00049315,30]
[358913575,1745544992130,-500.0,0.00049315,30]
[358913576,1745544992158,-500.0,0.00049315,30]
[358913577,1745544992186,-500.0,0.00049315,30]
[358913578,1745544992214,-500.0,0.00049315,30]
[358913579,1745544992241,-901.52,0.00049315,30]
[358913580,1745544992268,-500.0,0.00049315,30]
[358913581,1745544992296,-644.62,0.00049315,30]
[358913582,1745544992323,-1008.41,0.00049315,30]
[358913583,1745544992350,-2619.2,0.00049315,30]
[358913584,1745544992378,-1102.75,0.00049315,30]
[358913585,1745544992405,-500.0,0.00049315,30]
[358913586,1745544992432,-1503.08,0.00049315,30]
[358913587,1745544992459,-500.0,0.00049315,30]
[358913588,1745544992485,-817.1,0.00049315,30]
[358913589,1745544992512,-1147.58,0.00049315,30]
[358913590,1745544992539,-1000.0,0.00049315,120]
[358913591,1745544992567,-500.0,0.00049315,30]
[358913592,1745544992594,-169.583062,0.00049315,30]
[358913593,1745544992621,-500.0,0.00049315,30]
[358913594,1745544992647,-4526.86,0.00049315,30]
[358913595,1745544992673,-1065.37,0.00049315,30]
[358913596,1745544992699,-500.0,0.00049315,30]
[358913597,1745544992726,-508.6,0.00049315,30]
[358913598,1745544992753,-740.34,0.00049315,30]
[358913599,1745544992779,-1291.23,0.00049315,30]
[358913600,1745544992812,-500.0,0.00049315,30]
[358913601,1745544992837,-500.0,0.00049315,30]
[358913602,1745544992866,-500.0,0.00049315,30]
[358913603,1745544992893,-500.0,0.00049315,30]
[358913604,1745544992920,-593.9,0.00049315,30]
[358913605,1745544993213,-500.0,0.00049315,30]
[358913606,1745544993242,-555.96431452,0.00049315,30]
[358913607,1745544993270,-3944.13,0.00049315,30]
[358913608,1745544993298,-500.0,0.00049315,30]
[358913609,1745544993326,-500.0,0.00049315,30]
[358913610,1745544993354,-3738.13,0.00049315,30]
[358913611,1745544993381,-814.96,0.00049315,30]
[358913612,1745544993408,-500.0,0.00049315,30]
[358913613,1745544993435,-500.0,0.00049315,30]
[358913614,1745544993463,-500.0,0.00049315,30]
[358913615,1745544993492,-3013.74,0.00049315,30]
[358913616,1745544993520,-500.0,0.00049315,30]
[358913617,1745544993549,-500.0,0.00049315,30]
[358913618,1745544993579,-1940.43,0.00049315,30]
[358913619,1745544993607,-505.96,0.00049315,30]
[358913620,1745544993635,-802.86,0.00049315,30]
[358913621,1745544993663,-500.0,0.00049315,30]
[358913622,1745544993690,-831.63,0.00049315,30]
[358913623,1745544993717,-3690.41,0.00049315,30]
[358913624,1745544993744,-2007.82,0.00049315,30]
[358913625,1745544993771,-500.0,0.00049315,30]
[358913626,1745544993800,-2561.77,0.00049315,30]
[358913627,1745544993829,-500.0,0.00049315,30]
[358913628,1745544993857,-500.0,0.00049315,30]
[358913629,1745544993885,-500.0,0.00049315,30]
[358913630,1745544993913,-500.0,0.00049315,30]
[358913631,1745544993940,-500.0,0.00049315,30]
[358913632,1745544993969,-500.0,0.00049315,30]
[358913633,1745544993999,-500.0,0.00049315,30]
[358913634,1745544994028,-547.24715166,0.00049315,30]
[358913635,1745544994057,-1709.19,0.00049315,30]
[358913636,1745544994086,-625.02,0.00049315,30]
[358913637,1745544994115,-500.0,0.00049315,30]
[358913638,1745544994143,-641.42,0.00049315,30]
[358913639,1745544994172,-625.36,0.00049315,30]
[358913640,1745544994199,-500.0,0.00049315,30]
[358913641,1745544994225,-500.0,0.00049315,30]
[358913642,1745544994253,-661.96,0.00049315,30]
[358913643,1745544994280,-500.0,0.00049315,30]
[358913644,1745544994306,-500.0,0.00049315,30]
[358913645,1745544994333,-2106.95,0.00049315,30]
[358913646,1745544994359,-891.31,0.00049315,30]
[358913647,1745544994385,-500.0,0.00049315,30]
[358913648,1745544994412,-500.0,0.00049315,30]
[358913649,1745544994438,-500.0,0.00049315,30]
[358913650,1745544994463,-500.0,0.00049315,30]
[358913651,1745544994490,-500.0,0.00049315,30]
[358913652,1745544994516,-500.0,0.00049315,30]
[358913653,1745544994544,-500.0,0.00049315,30]
[358913654,1745544994570,-500.0,0.00049315,30]
[358913655,1745544994597,-2215.55,0.00049315,30]
[358913656,1745544994622,-612.26,0.00049315,30]
[358913657,1745544994648,-500.0,0.00049315,30]
[358913658,1745544994674,-1337.84,0.00049315,30]
[358913659,1745544994700,-500.0,0.00049315,30]
[358913660,1745544994726,-10709.64,0.00049315,30]
[358913661,1745544994751,-500.0,0.00049315,30]
[358913662,1745544994776,-318.02479488,0.00049315,30]
[358913663,1745544994804,-500.0,0.00049315,30]
[358913664,1745544994830,-500.0,0.00049315,30]
[358913665,1745544994855,-500.0,0.00049315,30]
[358913666,1745544994882,-500.0,0.00049315,30]
[358913667,1745544994908,-1976.56,0.00049315,30]
[358913668,1745544994933,-653.33,0.00049315,30]
[358913669,1745544994958,-596.77,0.00049315,30]
[358913670,1745544994984,-500.0,0.00049315,30]
[358913671,1745544995009,-500.0,0.00049315,30]
[358913672,1745544995034,-583.43344478,0.00049315,30]
[358913673,1745544995060,-1134.2,0.00049315,30]
[358913674,1745544995084,-500.0,0.00049315,30]
[358913675,1745544995110,-500.0,0.00049315,30]
[358913676,1745544995136,-500.0,0.00049315,30]
[358913677,1745544995163,-500.0,0.00049315,30]
[358913678,1745544995188,-500.0,0.00049315,30]
[358913679,1745544995213,-588.17231915,0.00049315,30]
[358913680,1745544995239,-1112.33,0.00049315,30]
[358913681,1745544995265,-1779.57,0.00049315,30]
[358913682,1745544995292,-1448.03,0.00049315,30]
[358913683,1745544995320,-1779.57,0.00049315,30]
[358913684,1745544995347,-1779.57,0.00049315,30]
[358913685,1745544995375,-500.0,0.00049315,30]
[358913686,1745544995403,-1779.57,0.00049315,30]
[358913687,1745544995430,-1779.57,0.00049315,30]
[358913688,1745544995458,-1779.57,0.00049315,30]
[358913689,1745544995484,-841.68,0.00049315,30]
[358913690,1745544995511,-1779.57,0.00049315,30]
[358913691,1745544995537,-823.66,0.00049315,30]
[358913692,1745544995564,-593.39511984,0.00049315,30]
[358913693,1745544995591,-1779.57,0.00049315,30]
[358913694,1745544995616,-500.0,0.00049315,30]
[358913695,1745544995643,-1779.57,0.00049315,30]